bitfinex-derivatives/quotes_SOLF0:USTF0_20250425
["timestamp","ask_amount","ask_price","bid_price","bid_amount"]
[1745578151656,5.1566976,153.26,153.23,6.5237]
[1745578152048,5.1566976,153.26,153.22,5.1566976]
[1745578152255,5.1566976,153.24,153.17,3.9457]
[1745578152755,5.1566976,153.22,153.19,6.5255]
[1745578152952,5.1566976,153.22,153.18,5.1566976]
[1745578153155,6.5249,153.21,153.17,6.5264]
[1745578153456,5.1566976,153.2,153.17,6.5264]
[1745578153853,5.1566976,153.2,153.18,6.526]
[1745578154854,5.1566976,153.2,153.19,6.5257]
[1745578155057,24.68,153.23,153.18,5.1566976]
[1745578155455,31.2041,153.23,153.19,6.5254]
[1745578155752,5.1566976,153.22,153.17,5.1566976]
[1745578155957,5.1566976,153.22,153.19,6.5254]
[1745578156252,24.68,153.23,153.1,3.9493]
[1745578156463,6.5256,153.2,153.15,6.5271]
[1745578156759,5.1566976,153.17,153.15,6.5271]
[1745578157159,5.1566976,153.17,153.14,6.5277]
[1745578157459,5.1566976,153.17,153.12,5.1566976]
[1745578157656,5.1566976,153.17,153.14,6.5274]
[1745578158259,5.1566976,153.17,153.13,6.5281]
[1745578158559,5.1566976,153.17,153.11,5.1566976]
[1745578159553,5.1566976,153.17,153.14,6.5274]
[1745578159860,5.1566976,153.17,153.11,5.1566976]
[1745578160157,5.1566976,153.17,153.14,6.5277]
[1745578161163,5.1566976,153.17,153.13,6.5282]
[1745578161359,5.1566976,153.15,153.11,5.1566976]
[1745578161559,5.1566976,153.15,153.09,5.1566976]
[1745578161764,5.1566976,153.13,153.1,6.5292]
[1745578161965,5.1566976,153.13,153.09,5.1566976]
[1745578162264,5.1566976,153.13,153.11,6.5287]
[1745578162465,24.7,153.14,153.11,5.1566976]
[1745578162861,29.8566976,153.16,153.12,6.5283]
[1745578163161,24.7,153.16,153.13,5.1566976]
[1745578163361,24.7,153.2,153.16,6.5267]
[1745578163566,29.8566976,153.2,153.16,6.5267]
[1745578163755,36.3820976,153.2,153.16,6.5267]
[1745578164859,36.3820976,153.2,153.15,11.6838976]
[1745578165059,5.1566976,153.18,153.14,5.1566976]
[1745578165666,5.1566976,153.19,153.16,6.527]
[1745578167563,24.7,153.2,153.17,6.5265]
[1745578167866,5.1566976,153.19,153.17,6.5265]
[1745578168060,5.1566976,153.18,153.0,824.64]
[1745578168265,5.1566976,153.16,153.11,5.1566976]
[1745578168470,5.1566976,153.15,153.11,5.1566976]
[1745578168669,24.68,153.16,153.08,11.6868976]
[1745578168670,5.1566976,153.12,153.08,11.6868976]
[1745578169061,36.3657976,153.12,153.08,5.1566976]
[1745578169265,29.8366976,153.12,153.08,5.1566976]
[1745578169667,29.8366976,153.12,153.09,6.53]
[1745578169868,29.8366976,153.12,153.06,3.9652]
[1745578170163,36.3656976,153.12,153.08,11.6868976]
[1745578170367,31.209,153.12,153.09,5.1566976]
[1745578170772,24.68,153.12,153.09,11.6862976]
[1745578171371,31.2087,153.12,153.09,11.6862976]
[1745578171871,5.1566976,153.14,153.09,5.1566976]
[1745578172574,11.6847976,153.14,153.11,6.5288]
[1745578172971,11.6847976,153.14,153.09,5.1566976]
[1745578173270,5.1566976,153.14,153.12,6.5286]
[1745578174966,36.3641976,153.15,153.12,6.5286]
[1745578175173,29.8366976,153.15,153.11,5.1566976]
[1745578175471,24.68,153.15,153.13,5.1566976]
[1745578175673,5.1566976,153.16,153.14,6.5278]
[1745578175969,5.1566976,153.16,153.13,5.1566976]
[1745578176374,11.6836976,153.16,153.13,11.6845976]
[1745578176672,11.6836976,153.16,153.13,6.5279]
[1745578176874,11.6845976,153.14,153.1,5.1566976]
[1745578177074,5.1566976,153.15,153.11,5.1566976]
[1745578177373,11.6844976,153.15,153.12,6.5285]
[1745578177574,5.1566976,153.15,153.12,6.5285]
[1745578177774,5.1566976,153.15,153.07,26.5602]
[1745578177972,5.1566976,153.15,153.1,5.1566976]
[1745578178477,5.1566976,153.13,153.07,1.8802]
[1745578178775,5.1566976,153.11,153.07,1.8802]
[1745578179074,11.6857976,153.11,153.08,6.53]
[1745578179374,11.6857976,153.11,153.07,1.8802]
[1745578179675,6.5291,153.11,153.08,6.5303]
[1745578180976,6.5296,153.1,153.08,6.5303]
[1745578181171,11.6862976,153.1,153.07,6.5307]
[1745578181875,5.1566976,153.1,153.06,5.1566976]
[1745578182074,5.1566976,153.11,153.06,5.1566976]
[1745578182283,5.1566976,153.11,153.04,24.68]
[1745578182284,6.5298,153.1,153.07,11.6871976]
[1745578182471,5.1566976,153.11,153.07,11.6871976]
[1745578182472,5.1566976,153.11,153.07,5.1566976]
[1745578183075,11.6860976,153.11,153.04,24.68]
[1745578183275,11.6860976,153.11,153.07,5.1566976]
[1745578183579,5.1566976,153.11,153.07,5.1566976]
[1745578184283,5.1566976,153.12,153.07,5.1566976]
[1745578184778,6.5293,153.11,153.08,6.53]
[1745578185080,29.8366976,153.13,153.08,5.1566976]
[1745578185282,36.3651976,153.13,153.1,6.5293]
[1745578186282,24.68,153.13,153.1,5.1566976]
[1745578187288,24.68,153.13,153.07,8.06224287]
[1745578187776,24.68,153.13,153.04,24.68]
[1745578187984,24.68,153.13,153.06,8.06224287]
[1745578188782,24.68,153.13,153.11,6.5291]
[1745578190185,24.68,153.13,153.04,24.68]
[1745578190381,24.68,153.13,153.05,8.06224287]
[1745578190685,31.2085,153.13,153.09,6.5295]
[1745578192086,31.2085,153.13,153.1,6.5295]
[1745578192785,6.5289,153.12,153.05,8.06224287]
[1745578193281,6.5289,153.12,153.09,6.5298]
[1745578193685,31.2086,153.13,153.05,8.06224287]
[1745578193883,24.68,153.13,153.05,8.06224287]
[1745578194190,6.5287,153.12,153.05,8.06224287]
[1745578194386,32.74224287,153.13,153.04,24.68]
[1745578194784,8.06224287,153.11,153.01,8.06224287]
[1745578195286,6.5303,153.09,153.01,8.06224287]
[1745578195487,24.7,153.09,153.05,6.5315]
[1745578195989,6.5304,153.08,153.05,6.5315]
[1745578197389,6.5304,153.08,153.06,6.5312]
[1745578197791,6.5308,153.07,153.01,8.06224287]
[1745578197989,24.7,153.09,153.01,8.06224287]
[1745578198584,24.7,153.09,153.07,6.5306]
[1745578200192,31.2302,153.09,153.07,6.5306]
[1745578200883,24.7,153.09,153.07,6.5306]
[1745578201392,31.23,153.09,153.07,6.5306]
[1745578201781,24.7,153.09,153.05,6.5317]
[1745578201988,24.7,153.09,153.01,8.06224287]
[1745578202481,24.7,153.09,153.03,8.06224287]
[1745578202985,24.7,153.09,153.07,6.5306]
[1745578203886,31.2303,153.09,153.06,6.5311]
[1745578204188,31.2303,153.09,153.03,8.06224287]
[1745578205089,31.2303,153.09,153.06,6.531]
[1745578205489,31.2303,153.09,153.03,8.06224287]
[1745578205787,31.2303,153.09,153.06,6.531]
[1745578207389,31.2303,153.09,153.07,6.5308]
[1745578207591,31.2303,153.09,153.03,8.06224287]
[1745578208987,2.0228,153.14,153.07,8.06224287]
[1745578209190,25.6685,153.17,153.04,25.34]
[1745578209387,5.16156011,153.12,153.07,5.16156011]
[1745578210294,6.5287,153.12,153.09,6.5297]
[1745578210887,25.6685,153.17,153.12,6.5285]
[1745578210888,6.5276,153.15,153.12,6.5285]
[1745578211193,25.6685,153.17,153.13,5.16156011]
[1745578211688,25.6685,153.17,153.08,25.34]
[1745578211689,25.6685,153.17,153.15,5.16156011]
[1745578211889,25.6685,153.17,153.13,5.16156011]
[1745578213394,6.5271,153.16,153.13,11.68956011]
[1745578213894,6.5275,153.15,153.13,6.5282]
[1745578214096,5.16156011,153.16,153.13,6.5282]
[1745578214498,11.68876011,153.16,153.13,6.5282]
[1745578214793,5.16156011,153.16,153.13,6.5282]
[1745578214991,5.16156011,153.16,153.1,5.16156011]
[1745578215296,5.16156011,153.14,153.09,5.16156011]
[1745578215496,6.5286,153.13,153.1,6.5293]
[1745578216095,6.528,153.14,153.11,5.16156011]
[1745578216692,6.528,153.14,153.11,11.69046011]
[1745578216898,6.5283,153.13,153.11,5.16156011]
[1745578217300,6.5283,153.13,153.1,6.5293]
[1745578217701,6.5283,153.13,153.09,5.16156011]
[1745578217900,6.5283,153.13,153.1,6.5293]
[1745578218502,6.5283,153.13,153.11,6.529]
[1745578218703,5.16156011,153.14,153.11,6.529]
[1745578219300,6.5283,153.13,153.11,6.529]
[1745578219500,5.16156011,153.14,153.11,6.529]
[1745578220102,6.5283,153.13,153.11,6.529]
[1745578220805,11.68946011,153.14,153.12,6.5287]
[1745578221302,11.68946011,153.14,153.09,5.16156011]
[1745578221499,11.68946011,153.14,153.11,6.5289]
[1745578222002,11.68946011,153.14,153.12,6.5287]
[1745578223004,6.5283,153.13,153.11,6.5288]
[1745578224206,11.68956011,153.14,153.11,6.5288]
[1745578226603,11.68956011,153.14,153.12,6.5286]
[1745578226904,5.16156011,153.14,153.11,5.16156011]
[1745578227304,5.16156011,153.14,153.12,6.5284]
[1745578227505,5.16156011,153.14,153.11,5.16156011]
[1745578228002,5.16156011,153.14,153.13,6.5283]
[1745578228408,6.5276,153.15,153.13,6.5283]
[1745578228607,5.16156011,153.14,153.09,2.0225]
[1745578228807,5.16156011,153.12,153.08,30.50156011]
[1745578229305,5.16156011,153.12,153.05,28.9211]
[1745578229504,5.16156011,153.1,153.05,34.08266011]
[1745578229910,5.16156011,153.08,153.04,1.8645]
[1745578230111,11.69216011,153.08,153.04,1.8645]
[1745578230708,5.16156011,153.08,153.04,7.02606011]
[1745578231004,5.16156011,153.08,153.05,6.5316]
[1745578231209,5.16156011,153.08,153.04,7.02606011]
[1745578231709,5.16156011,153.08,153.07,6.5308]
[1745578232806,6.5302,153.09,153.04,7.02606011]
[1745578233009,5.16156011,153.1,153.06,5.16156011]
[1745578233510,5.16156011,153.1,153.07,6.5305]
[1745578233712,11.69116011,153.1,153.06,5.16156011]
[1745578234709,11.69116011,153.1,153.08,6.5302]
[1745578235415,11.69116011,153.1,153.07,6.5306]
[1745578236715,11.69116011,153.1,153.08,6.5304]
[1745578237013,11.69116011,153.1,153.05,5.16156011]
[1745578237815,11.69116011,153.1,153.07,6.5305]
[1745578238714,11.69116011,153.1,153.08,6.5304]
[1745578240614,11.69116011,153.1,153.07,6.5306]
[1745578241016,11.69116011,153.1,153.05,5.16156011]
[1745578241417,6.53,153.09,153.05,5.16156011]
[1745578242315,6.53,153.09,153.07,6.5306]
[1745578242510,5.16156011,153.1,153.05,5.16156011]
[1745578242911,5.16156011,153.1,153.06,6.531]
[1745578243112,6.5303,153.09,153.06,6.531]
[1745578243517,6.5301,153.09,153.06,6.531]
[1745578244719,6.5301,153.09,153.07,6.5308]
[1745578244921,6.5298,153.1,153.07,6.5308]
[1745578245419,6.53,153.09,153.07,6.5308]
[1745578246117,6.5297,153.1,153.07,6.5308]
[1745578246321,5.16156011,153.12,153.08,5.16156011]
[1745578246623,5.16156011,153.1,153.04,1.8645]
[1745578246826,6.5302,153.09,153.06,6.531]
[1745578247120,6.5302,153.09,153.04,7.02606011]
[1745578249217,6.5302,153.09,153.06,6.5309]
[1745578250323,6.5305,153.08,153.06,6.5309]
[1745578251128,6.5302,153.09,153.07,6.5308]
[1745578251424,5.16156011,153.1,153.04,7.02606011]
[1745578251923,6.5304,153.08,153.06,6.531]
[1745578254327,6.5301,153.09,153.06,6.531]
[1745578255221,6.5305,153.08,153.06,6.531]
[1745578255627,5.16156011,153.1,153.06,6.531]
[1745578255928,6.5302,153.09,153.06,6.531]
[1745578256122,25.02,153.13,153.06,6.531]
[1745578256324,6.5303,153.09,153.06,6.531]
[1745578257928,6.5305,153.08,153.06,6.531]
[1745578258428,6.5301,153.09,153.06,6.531]
[1745578258628,6.5301,153.09,153.06,11.69256011]
[1745578258923,6.5301,153.09,153.07,6.5308]
[1745578259128,6.5301,153.09,153.06,5.16156011]
[1745578259330,6.5301,153.09,153.06,11.69256011]
[1745578260131,6.5304,153.08,153.06,11.69256011]
[1745578260333,5.16156011,153.1,153.07,6.5308]
[1745578260530,5.16156011,153.12,153.07,6.5308]
[1745578260831,30.18156011,153.13,153.08,5.16156011]
[1745578261031,25.02,153.13,153.09,5.16156011]
[1745578261231,6.5289,153.12,153.09,5.16156011]
[1745578261431,27.05503,153.16,153.11,5.16156011]
[1745578261633,0.31773,153.16,153.14,6.5277]
[1745578261833,0.31773,153.16,153.14,5.16156011]
[1745578262237,0.31773,153.16,153.14,11.68926011]
[1745578262937,6.84473,153.16,153.14,6.5277]
[1745578266137,6.84473,153.16,153.13,11.68966011]
[1745578266536,6.84473,153.16,153.14,6.5278]
[1745578266739,0.31773,153.16,153.14,6.5278]
[1745578268033,0.31773,153.16,153.14,11.68936011]
[1745578268534,0.31773,153.16,153.15,6.5274]
[1745578268838,0.31773,153.16,153.15,11.68896011]
[1745578269840,6.5258,153.19,153.17,6.5265]
[1745578271039,6.5255,153.2,153.17,6.5265]
[1745578271638,6.5257,153.19,153.17,6.5265]
[1745578271843,5.16156011,153.21,153.17,6.5265]
[1745578272142,5.16156011,153.23,153.19,5.16156011]
[1745578272345,6.5245,153.22,153.18,5.16156011]
[1745578272644,5.16156011,153.25,153.2,5.16156011]
[1745578272845,11.68496011,153.25,153.2,5.16156011]
[1745578273045,6.5234,153.25,153.2,5.16156011]
[1745578273849,36.52446011,153.26,153.2,5.16156011]
[1745578274146,30.00156011,153.26,153.2,5.16156011]
[1745578274941,36.52446011,153.26,153.23,6.5238]
[1745578275147,11.68446011,153.26,153.23,6.5238]
[1745578275741,6.5233,153.25,153.23,6.5238]
[1745578275941,5.16156011,153.24,153.2,5.16156011]
[1745578276545,5.16156011,153.24,153.18,30.00156011]
[1745578276743,5.16156011,153.22,153.18,24.84]
[1745578276941,11.68706011,153.2,153.17,6.5263]
[1745578277247,5.16156011,153.2,153.15,24.82]
[1745578277448,6.526,153.19,153.16,6.5267]
[1745578277648,5.16156011,153.2,153.15,24.82]
[1745578278152,5.16156011,153.2,153.17,6.5263]
[1745578278754,11.68706011,153.2,153.17,6.5263]
[1745578279752,6.5258,153.19,153.16,6.5268]
[1745578280650,6.5258,153.19,153.17,6.5265]
[1745578280851,11.68706011,153.2,153.17,6.5265]
[1745578281353,6.5258,153.19,153.17,6.5265]
[1745578281656,5.16156011,153.2,153.17,6.5265]
[1745578281854,11.68706011,153.2,153.17,6.5265]
[1745578282046,5.16156011,153.2,153.18,6.526]
[1745578282550,11.68686011,153.2,153.18,6.526]
[1745578283054,11.68686011,153.2,153.17,6.5264]
[1745578283656,11.68686011,153.2,153.18,6.526]
[1745578283856,6.5266,153.17,153.09,5.7902]
[1745578284057,11.68816011,153.17,153.11,5.16156011]
[1745578284852,11.68816011,153.17,153.13,6.5279]
[1745578285652,6.5271,153.16,153.14,6.5277]
[1745578286756,6.5276,153.15,153.13,6.528]
[1745578287859,6.5272,153.16,153.13,6.528]
[1745578288160,5.16156011,153.17,153.13,6.528]
[1745578288354,6.5276,153.15,153.13,6.528]
[1745578289162,6.5281,153.14,153.11,11.69046011]
[1745578289460,5.16156011,153.15,153.1,29.98156011]
[1745578290262,6.5279,153.14,153.11,6.5289]
[1745578290561,6.5279,153.14,153.1,29.98156011]
[1745578290758,6.5279,153.14,153.11,6.5288]
[1745578290960,5.16156011,153.13,153.1,24.82]
[1745578291256,5.16156011,153.13,153.11,6.5289]
[1745578292460,5.16156011,153.15,153.1,5.16156011]
[1745578292963,6.5278,153.14,153.11,6.5289]
[1745578293259,6.5278,153.14,153.1,5.16156011]
[1745578294265,6.5278,153.14,153.11,6.529]
[1745578294759,6.5278,153.14,153.11,6.5288]
[1745578295665,5.16156011,153.13,153.1,6.5293]
[1745578296268,6.5287,153.12,153.1,6.5293]
[1745578296962,11.68996011,153.13,153.1,6.5293]
[1745578297862,11.68996011,153.13,153.09,5.16156011]
[1745578298063,11.68996011,153.13,153.11,6.529]
[1745578303868,5.16156011,153.15,153.12,6.5287]
[1745578304375,24.72,153.17,153.12,6.5287]
[1745578304571,5.16156011,153.15,153.12,6.5287]
[1745578304874,5.16156011,153.15,153.11,11.69026011]
[1745578305369,5.16156011,153.15,153.11,6.5287]
[1745578306876,6.5285,153.13,153.11,6.5287]
[1745578310875,6.528,153.14,153.11,6.5287]
[1745578311274,5.16156011,153.15,153.11,6.5287]
[1745578312277,6.5283,153.13,153.11,6.5287]
[1745578322685,24.72,153.17,153.11,5.16156011]
[1745578322876,24.72,153.17,153.13,5.16156011]
[1745578323477,5.16156011,153.16,153.05,3.9133]
[1745578323675,24.72,153.17,153.05,3.9133]
[1745578323676,5.16156011,153.12,153.08,5.16156011]
[1745578323880,5.16156011,153.14,153.08,5.16156011]
[1745578324183,6.5278,153.15,153.1,5.16156011]
[1745578324580,6.5278,153.15,153.12,6.5285]
[1745578325886,6.5275,153.15,153.13,6.5281]
[1745578326387,24.72,153.17,153.12,5.16156011]
[1745578326588,31.247,153.17,153.14,6.5276]
[1745578326789,24.72,153.17,153.14,6.5276]
[1745578327389,6.5273,153.16,153.14,6.5276]
[1745578327589,24.72,153.17,153.13,6.5281]
[1745578327890,6.5274,153.16,153.13,6.5281]
[1745578328092,24.72,153.17,153.13,6.5281]
[1745578328489,6.5271,153.16,153.13,6.5281]
[1745578329290,6.5275,153.15,153.13,6.5281]
[1745578330093,6.5272,153.16,153.13,6.5281]
[1745578330393,24.72,153.17,153.13,6.5281]
[1745578330992,6.5276,153.15,153.13,6.5281]
[1745578331288,5.16156011,153.16,153.12,11.69006011]
[1745578331888,6.5275,153.15,153.12,11.69006011]
[1745578332090,5.16156011,153.16,153.12,11.69006011]
[1745578332491,6.5275,153.15,153.12,11.69006011]
[1745578332895,6.528,153.14,153.12,11.69006011]
[1745578333190,6.528,153.14,153.12,5.16156011]
[1745578334301,6.528,153.14,153.12,11.69016011]
[1745578337402,6.5283,153.13,153.11,6.529]
[1745578337700,5.16156011,153.14,153.1,5.16156011]
[1745578338100,5.16156011,153.14,153.1,11.69076011]
[1745578338298,5.16156011,153.14,153.08,29.88156011]
[1745578338499,5.16156011,153.14,153.09,6.5297]
[1745578339003,5.16156011,153.14,153.08,5.16156011]
[1745578339504,6.529,153.12,153.1,6.5293]
[1745578339701,5.16156011,153.14,153.08,5.16156011]
[1745578340102,6.5285,153.13,153.1,6.5293]
[1745578340302,5.16156011,153.14,153.1,6.5293]
[1745578340702,6.5287,153.13,153.1,6.5293]
[1745578341302,6.5287,153.13,153.11,6.5291]
[1745578344507,6.5287,153.13,153.1,6.5293]
[1745578344803,6.5287,153.13,153.08,5.16156011]
[1745578345907,6.5287,153.13,153.11,6.529]
[1745578346210,11.68956011,153.14,153.1,5.16156011]
[1745578346611,5.16156011,153.14,153.11,6.5288]
[1745578348105,6.5281,153.14,153.11,6.5288]
[1745578348298,6.5281,153.14,153.12,6.5286]
[1745578349702,6.5284,153.13,153.11,6.5288]
[1745578349906,5.16156011,153.13,153.09,5.16156011]
[1745578350406,11.68996011,153.13,153.1,6.5295]
[1745578353209,11.68996011,153.13,153.11,6.5291]
[1745578354912,11.68996011,153.13,153.1,6.5293]
[1745578355107,6.5289,153.12,153.1,6.5293]
[1745578355512,11.68996011,153.13,153.11,6.5291]
[1745578355912,11.68996011,153.13,153.09,5.16156011]
[1745578356312,6.5289,153.12,153.1,6.5293]
[1745578358109,11.69006011,153.13,153.09,5.16156011]
[1745578358313,11.69006011,153.13,153.11,6.5291]
[1745578358813,5.16156011,153.13,153.11,6.5291]
[1745578359216,11.69006011,153.13,153.11,6.5291]
[1745578360515,6.528,153.14,153.12,6.5287]
[1745578361515,6.5283,153.13,153.11,6.5289]
[1745578362518,5.16156011,153.13,153.01,471.17667913]
[1745578362815,5.16156011,153.13,153.06,5.16156011]
[1745578363112,5.16156011,153.11,153.06,5.16156011]
[1745578363620,6.5298,153.1,153.06,11.69246011]
[1745578364319,6.5298,153.1,153.07,6.5308]
[1745578364715,6.5302,153.09,153.07,6.5308]
[1745578365523,6.5305,153.08,153.06,11.69256011]
[1745578366119,6.5302,153.09,153.07,6.5308]
[1745578368324,5.16156011,153.08,153.02,3.8073]
[1745578368522,5.16156011,153.06,153.01,24.7]
[1745578368722,5.16156011,153.06,153.0,5.16156011]
[1745578369122,5.16156011,153.08,153.02,5.16156011]
[1745578369924,6.531,153.07,153.04,6.5318]
[1745578370123,5.16156011,153.08,153.02,5.16156011]
[1745578370525,11.69216011,153.08,153.04,6.5318]
[1745578371024,11.69216011,153.08,153.02,5.16156011]
[1745578371321,29.86156011,153.11,153.04,5.16156011]
[1745578371723,6.53,153.09,153.06,6.531]
[1745578372422,6.5297,153.1,153.06,6.531]
[1745578372614,6.5297,153.1,153.06,11.69256011]
[1745578374124,6.53,153.09,153.06,11.69256011]
[1745578375425,6.5305,153.08,153.06,5.16156011]
[1745578375725,5.16156011,153.07,153.01,5.16156011]
[1745578376121,5.16156011,153.07,153.03,5.16156011]
[1745578376422,5.16156011,153.09,153.03,5.16156011]
[1745578377323,6.5309,153.07,153.04,6.5318]
[1745578377622,6.5309,153.07,153.03,5.16156011]
[1745578377924,6.5306,153.08,153.05,6.5314]
[1745578378123,5.16156011,153.09,153.03,5.16156011]
[1745578378524,6.531,153.07,153.04,6.5317]
[1745578378927,6.531,153.07,153.03,5.16156011]
[1745578379125,6.531,153.07,153.04,6.5318]
[1745578379326,6.531,153.07,153.03,5.16156011]
[1745578379530,6.531,153.07,153.04,6.5319]
[1745578380226,6.531,153.07,153.05,6.5316]
[1745578381727,6.5307,153.08,153.05,6.5316]
[1745578382024,6.5307,153.08,153.03,5.16156011]
[1745578382424,6.5307,153.08,153.05,6.5314]
[1745578383833,6.5309,153.07,153.05,6.5314]
[1745578384337,6.5315,153.06,153.03,5.16156011]
[1745578384636,6.5315,153.06,153.04,6.5321]
[1745578384934,6.5306,153.08,153.03,5.16156011]
[1745578385435,11.69346011,153.05,153.01,24.7]
[1745578385637,5.16156011,153.07,153.02,5.16156011]
[1745578385935,6.5315,153.06,153.03,6.5323]
[1745578386538,6.5315,153.06,153.02,5.16156011]
[1745578387038,6.5315,153.06,153.04,6.532]
[1745578387439,6.5313,153.06,153.04,6.532]
[1745578393145,6.5313,153.06,153.03,6.5323]
[1745578393347,6.5313,153.06,153.02,5.16156011]
[1745578394649,6.5313,153.06,153.03,6.5324]
[1745578395944,6.5319,153.05,153.03,6.5324]
[1745578396150,5.16156011,153.04,152.99,6.5339]
[1745578396350,5.16156011,153.02,152.99,6.5339]
[1745578396551,11.69476011,153.02,152.99,6.5339]
[1745578397056,6.5344,152.99,152.95,5.16156011]
[1745578397548,6.5344,152.99,152.96,6.5352]
[1745578398751,11.69546011,153.0,152.97,6.5351]
[1745578399050,5.16156011,153.02,152.97,5.16156011]
[1745578400053,6.5339,153.0,152.98,6.5343]
[1745578400253,6.5339,153.0,152.97,5.16156011]
[1745578400752,6.5339,153.0,152.97,11.69646011]
[1745578401253,6.5343,152.99,152.97,5.16156011]
[1745578401448,6.5343,152.99,152.95,5.16156011]
[1745578402054,6.5343,152.99,152.96,6.5353]
[1745578402550,11.69556011,153.0,152.97,6.5351]
[1745578403854,5.16156011,153.0,152.95,5.16156011]
[1745578404654,11.69546011,153.0,152.97,6.5348]
[1745578404855,5.16156011,153.0,152.95,5.16156011]
[1745578405155,11.69546011,153.0,152.97,6.5348]
[1745578406254,11.69546011,153.0,152.98,6.5347]
[1745578406651,5.16156011,153.0,152.95,5.16156011]
[1745578406856,5.16156011,153.0,152.96,6.5353]
[1745578407056,28.6583,153.05,152.95,5.16156011]
[1745578407256,6.5332,153.02,152.97,5.16156011]
[1745578407657,11.69436011,153.03,152.99,6.534]
[1745578407854,11.69436011,153.03,152.97,5.16156011]
[1745578409258,6.5332,153.02,152.97,5.16156011]
[1745578409457,6.5332,153.02,152.99,6.5342]
[1745578409859,11.69476011,153.02,152.99,6.5342]
[1745578411959,5.16156011,153.03,152.97,5.16156011]
[1745578412652,5.68451616,153.02,153.0,6.5335]
[1745578414365,5.68451616,153.02,153.01,6.5334]
[1745578414662,5.68451616,153.02,152.98,5.68451616]
[1745578416162,5.68451616,153.02,153.0,6.5334]
[1745578416463,5.68451616,153.02,152.98,5.68451616]
[1745578417461,5.68451616,153.06,153.0,5.68451616]
[1745578417661,5.68451616,153.06,153.02,5.68451616]
[1745578417864,5.68451616,153.07,153.05,6.5317]
[1745578418968,12.21531616,153.07,153.05,6.5317]
[1745578419165,5.68451616,153.07,153.06,6.5312]
[1745578419465,30.38451616,153.08,153.06,6.5312]
[1745578420173,36.91511616,153.08,153.06,6.5312]
[1745578420371,36.91511616,153.08,153.05,6.5314]
[1745578421268,12.21511616,153.08,153.05,6.5314]
[1745578421471,12.21511616,153.08,153.04,5.68451616]
[1745578421971,12.21511616,153.08,153.05,6.5314]
[1745578422968,6.5309,153.07,153.05,6.5314]
[1745578423271,12.21541616,153.07,153.05,6.5314]
[1745578423873,6.5315,153.06,153.02,5.68451616]
[1745578424170,5.68451616,153.07,153.02,5.68451616]
[1745578424471,5.68451616,153.06,153.02,5.68451616]
[1745578424672,12.21601616,153.06,153.04,6.5319]
[1745578426575,6.5315,153.06,153.04,6.5319]
[1745578427776,12.21551616,153.07,153.05,6.5314]
[1745578428075,6.531,153.07,153.05,6.5314]
[1745578428273,494.96,153.11,153.04,5.68451616]
[1745578428274,5.68451616,153.09,153.04,5.68451616]
[1745578428474,24.7,153.11,153.08,5.68451616]
[1745578428666,5.68451616,153.14,153.03,24.7]
[1745578428868,12.21261616,153.14,153.1,5.68451616]
[1745578429072,24.7,153.15,153.1,5.68451616]
[1745578429271,30.38451616,153.15,153.11,5.68451616]
[1745578429674,36.91221616,153.15,153.11,5.68451616]
[1745578430177,6.5278,153.14,153.12,6.5284]
[1745578431681,24.7,153.15,153.13,6.5282]
[1745578431881,5.68451616,153.16,153.13,6.5282]
[1745578432281,26.6689,153.18,153.14,6.5277]
[1745578432579,5.68451616,153.16,153.12,5.68451616]
[1745578432881,6.5277,153.15,153.11,5.68451616]
[1745578433080,12.21221616,153.15,153.11,5.68451616]
[1745578433379,12.21221616,153.15,153.12,6.5285]
[1745578434281,6.528,153.14,153.12,6.5285]
[1745578434480,5.68451616,153.15,153.12,6.5285]
[1745578434781,12.21221616,153.15,153.12,6.5285]
[1745578435581,6.5279,153.14,153.12,6.5285]
[1745578435982,5.68451616,153.15,153.12,6.5285]
[1745578436280,12.21211616,153.15,153.12,6.5285]
[1745578437781,6.5276,153.15,153.13,6.5282]
[1745578437983,12.21171616,153.16,153.13,6.5282]
[1745578438183,5.68451616,153.16,153.08,3.9709]
[1745578438383,12.21221616,153.15,153.12,6.5286]